fUST/lending_fUST_20250124
["ID","MTS","AMOUNT","RATE_DAILY","PERIOD"]
[350160972,1737663036305,-466.07267805,0.00019019,2]
[350160973,1737663036318,-153.0,0.00019041,2]
[350160975,1737663036328,-153.0,0.00019041,2]
[350160977,1737663036337,-153.0,0.00019041,2]
[350160980,1737663036347,-500.0,0.00019068,2]
[350160982,1737663036356,-291.82821101,0.00019166,2]
[350160983,1737663036365,-500.0,0.00019177,2]
[350160986,1737663036374,-500.0,0.00019177,2]
[350160988,1737663036384,-384.14,0.00019177,2]
[350160990,1737663036393,-500.0,0.00019177,2]
[350160992,1737663036403,-500.0,0.00019177,2]
[350160994,1737663036412,-500.0,0.00019177,2]
[350160996,1737663036421,-500.0,0.00019177,2]
[350160998,1737663036430,-500.0,0.00019177,2]
[350161000,1737663036439,-500.0,0.00019177,2]
[350161002,1737663036449,-500.0,0.00019177,2]
[350161003,1737663036462,-500.0,0.00019177,2]
[350161005,1737663036471,-500.0,0.00019177,2]
[350161007,1737663036480,-514.70299528,0.00019177,2]
[350161010,1737663036491,-500.0,0.00019177,2]
[350161012,1737663036499,-500.0,0.00019177,2]
[350161013,1737663036509,-500.0,0.00019177,2]
[350161015,1737663036518,-500.0,0.00019177,2]
[350161018,1737663036527,-500.0,0.00019177,2]
[350161019,1737663036537,-500.0,0.00019177,2]
[350161021,1737663036546,-500.0,0.00019177,2]
[350161023,1737663036556,-500.0,0.00019177,2]
[350161025,1737663036567,-500.0,0.00019177,2]
[350161028,1737663036576,-500.0,0.00019177,2]
[350161030,1737663036586,-231.89707727,0.00019177,2]
[350161031,1737663036596,-500.0,0.00019177,2]
[350161034,1737663036606,-500.0,0.00019177,2]
[350161036,1737663036615,-500.0,0.00019177,2]
[350161038,1737663036625,-500.0,0.00019177,2]
[350161040,1737663036634,-500.0,0.00019177,2]
[350161042,1737663036643,-500.0,0.00019177,2]
[350161044,1737663036654,-620.05298426,0.00019177,2]
[350161046,1737663036664,-500.0,0.00019177,2]
[350161048,1737663036674,-426.93442252,0.00019177,2]
[350161050,1737663036683,-500.0,0.00019177,2]
[350161051,1737663036692,-500.0,0.00019177,2]
[350161053,1737663036702,-500.0,0.00019177,2]
[350161055,1737663036711,-500.0,0.00019177,2]
[350161057,1737663036720,-500.0,0.00019177,2]
[350161059,1737663036730,-500.0,0.00019177,2]
[350161062,1737663036742,-500.0,0.00019177,2]
[350161064,1737663036752,-405.11412637,0.00019177,2]
[350161066,1737663036761,-500.0,0.00019177,2]
[350161068,1737663036771,-500.0,0.00019177,2]
[350161070,1737663036780,-500.0,0.00019177,2]
[350161072,1737663036790,-500.0,0.00019177,2]
[350161075,1737663036815,-500.0,0.00019177,2]
[350161077,1737663036825,-500.0,0.00019177,2]
[350161079,1737663036836,-500.0,0.00019177,2]
[350161081,1737663036846,-500.0,0.00019177,2]
[350161083,1737663036856,-500.0,0.00019177,2]
[350161085,1737663036866,-198.06165121,0.00019177,2]
[350161087,1737663036876,-500.0,0.00019177,2]
[350161089,1737663036887,-500.0,0.00019177,2]
[350161091,1737663036897,-500.0,0.00019177,2]
[350161093,1737663036909,-500.0,0.00019177,2]
[350161096,1737663036921,-500.0,0.00019177,2]
[350161098,1737663036931,-500.0,0.00019177,2]
[350161100,1737663036942,-500.0,0.00019177,2]
[350161102,1737663036952,-500.0,0.00019177,2]
[350161104,1737663036962,-500.0,0.00019177,2]
[350161106,1737663036972,-500.0,0.00019177,2]
[350161108,1737663036983,-500.0,0.00019177,2]
[350161110,1737663036994,-500.0,0.00019177,2]
[350161112,1737663037004,-500.0,0.00019177,2]
[350161115,1737663037014,-500.0,0.00019177,2]
[350161117,1737663037025,-500.0,0.00019177,2]
[350161119,1737663037035,-500.0,0.00019177,2]
[350161121,1737663037044,-500.0,0.00019177,2]
[350161123,1737663037053,-500.0,0.00019177,2]
[350161125,1737663037066,-649.0812591,0.00019177,2]
[350161127,1737663037076,-500.0,0.00019177,2]
[350161129,1737663037086,-500.0,0.00019177,2]
[350161131,1737663037096,-500.0,0.00019177,2]
[350161133,1737663037106,-500.0,0.00019177,2]
[350161135,1737663037116,-500.0,0.00019177,2]
[350161137,1737663037125,-192.43300858,0.00019177,2]
[350161139,1737663037135,-500.0,0.00019177,2]
[350161141,1737663037145,-414.90812591,0.00019177,2]
[350161143,1737663037155,-500.0,0.00019177,2]
[350161145,1737663037165,-500.0,0.00019177,2]
[350161147,1737663037174,-500.0,0.00019177,2]
[350161149,1737663037184,-500.0,0.00019177,2]
[350161151,1737663037193,-500.0,0.00019177,2]
[350161153,1737663037203,-500.0,0.00019177,2]
[350161155,1737663037212,-18713.30938928,0.00019178,5]
[350161157,1737663037222,-5330.46474019,0.00019178,5]
[350161159,1737663037232,-393.32,0.00019178,2]
[350161161,1737663037242,-500.0,0.00019178,2]
[350161163,1737663037251,-500.0,0.00019178,2]
[350161165,1737663037261,-517.73457436,0.00019178,2]
[350161167,1737663037271,-500.0,0.00019178,2]
[350161169,1737663037281,-511.12507265,0.00019178,2]
[350161171,1737663037291,-206.02557801,0.00019178,2]
[350161173,1737663037301,-500.0,0.00019178,2]
[350161175,1737663037312,-500.0,0.00019178,2]
[350161177,1737663037321,-500.0,0.00019178,2]
[350161179,1737663037331,-500.0,0.00019178,2]
[350161181,1737663037340,-504.56324434,0.00019178,2]
[350161183,1737663037350,-500.0,0.00019178,2]
[350161185,1737663037360,-500.0,0.00019178,2]
[350161187,1737663037369,-500.0,0.00019178,2]
[350161189,1737663037379,-500.0,0.00019178,2]
[350161191,1737663037388,-500.0,0.00019178,2]
[350161193,1737663037398,-636.15958407,0.00019178,2]
[350161195,1737663037407,-500.0,0.00019178,2]
[350161197,1737663037417,-500.0,0.00019178,2]
[350161199,1737663037427,-500.0,0.00019178,2]
[350161201,1737663037436,-500.0,0.00019178,2]
[350161203,1737663037447,-500.0,0.00019178,2]
[350161205,1737663037459,-500.0,0.00019178,2]
[350161207,1737663037469,-500.0,0.00019178,2]
[350161210,1737663037478,-500.0,0.00019178,2]
[350161211,1737663037488,-500.0,0.00019178,2]
[350161213,1737663037498,-500.0,0.00019178,2]
[350161216,1737663037508,-197.56417551,0.00019178,2]
[350161218,1737663037517,-500.0,0.00019178,2]
[350161220,1737663037527,-500.0,0.00019178,2]
[350161222,1737663037537,-500.0,0.00019178,2]
[350161224,1737663037546,-500.0,0.00019178,2]
[350161226,1737663037555,-500.0,0.00019178,2]
[350161228,1737663037568,-500.0,0.00019178,2]
[350161230,1737663037578,-500.0,0.00019178,2]
[350161232,1737663037587,-500.0,0.00019178,2]
[350161234,1737663037597,-500.0,0.00019178,2]
[350161236,1737663037606,-500.0,0.00019178,2]
[350161238,1737663037615,-817.01,0.00019178,2]
[350161240,1737663037625,-500.0,0.00019178,2]
[350161242,1737663037635,-500.0,0.00019178,2]
[350161244,1737663037644,-878.33,0.00019178,2]
[350161246,1737663037654,-500.0,0.00019178,2]
[350161247,1737663037664,-500.0,0.00019178,2]
[350161249,1737663037673,-500.0,0.00019178,2]
[350161251,1737663037682,-500.0,0.00019178,2]
[350161253,1737663037692,-500.0,0.00019178,2]
[350161255,1737663037702,-474.08,0.00019178,2]
[350161257,1737663037711,-500.0,0.00019178,2]
[350161259,1737663037721,-500.0,0.00019178,2]
[350161261,1737663037731,-8046.19,0.00019178,2]
[350161263,1737663037740,-3105.27,0.00019178,2]
[350161265,1737663037750,-500.0,0.00019178,2]
[350161267,1737663037760,-3913.85,0.00019178,2]
[350161269,1737663037770,-500.0,0.00019178,2]
[350161271,1737663037780,-500.0,0.00019178,2]
[350161273,1737663037790,-500.0,0.00019178,2]
[350161275,1737663037799,-500.0,0.00019178,2]
[350161277,1737663037813,-500.0,0.00019178,2]
[350161279,1737663037823,-500.0,0.00019178,2]
[350161281,1737663037833,-500.0,0.00019178,2]
[350161283,1737663037842,-266.11,0.00019178,2]
[350161285,1737663037852,-1711.96,0.00019178,2]
[350161287,1737663037862,-500.0,0.00019178,2]
[350161289,1737663037872,-500.0,0.00019178,2]
[350161291,1737663037881,-500.0,0.00019178,2]
[350161292,1737663037891,-1208.85,0.00019178,2]
[350161294,1737663037901,-500.0,0.00019178,2]
[350161296,1737663037911,-500.0,0.00019178,2]
[350161299,1737663037921,-688.62,0.00019178,2]
[350161300,1737663037931,-873.61,0.00019178,2]
[350161303,1737663037941,-500.0,0.00019178,2]
[350161305,1737663037950,-500.0,0.00019178,2]
[350161307,1737663037960,-1318.32,0.00019178,2]
[350161309,1737663037970,-534.45,0.00019178,2]
[350161311,1737663037979,-500.0,0.00019178,2]
[350161313,1737663037989,-500.0,0.00019178,2]
[350161315,1737663037998,-500.0,0.00019178,2]
[350161317,1737663038008,-500.0,0.00019178,2]
[350161319,1737663038019,-543.06,0.00019178,2]
[350161321,1737663038028,-500.0,0.00019178,2]
[350161323,1737663038037,-500.0,0.00019178,2]
[350161325,1737663038047,-500.0,0.00019178,2]
[350161327,1737663038057,-500.0,0.00019178,2]
[350161329,1737663038070,-6658.01,0.00019178,2]
[350161331,1737663038080,-847.08,0.00019178,2]
[350161333,1737663038090,-500.0,0.00019178,2]
[350161335,1737663038099,-500.0,0.00019178,2]
[350161337,1737663038108,-1306.42,0.00019178,2]
[350161339,1737663038118,-500.0,0.00019178,2]
[350161341,1737663038127,-500.0,0.00019178,2]
[350161342,1737663038136,-500.0,0.00019178,2]
[350161343,1737663038146,-767.93,0.00019178,2]
[350161344,1737663038155,-1447.81,0.00019178,2]
[350161345,1737663038164,-500.0,0.00019178,2]
[350161346,1737663038174,-3555.19,0.00019178,2]
[350161347,1737663038183,-1121.38,0.00019178,2]
[350161348,1737663038192,-169.385011,0.00019178,2]
[350161349,1737663038201,-167.775625,0.00019178,2]
[350161350,1737663038211,-151.0,0.000193,2]
[350161351,1737663038220,-300.21185406,0.00019314,2]
[350161352,1737663038229,-500.0,0.00019314,2]
[350161353,1737663038239,-274.48377552,0.00019314,2]
[350161354,1737663038248,-500.0,0.00019314,2]
[350161355,1737663038257,-282.97509473,0.00019314,2]
[350161356,1737663038266,-500.0,0.00019315,2]
[350161357,1737663038276,-500.0,0.00019315,3]
[350161358,1737663038285,-152.303043,0.00019315,2]
[350161360,1737663038294,-252.28,0.00019315,3]
[350161362,1737663038304,-151.0,0.00019315,2]
[350161364,1737663038316,-153.938735,0.00019315,2]
[350161377,1737663038421,-151.0,0.00019315,2]
[350161379,1737663038432,-151.0,0.00019315,2]
[350161381,1737663038441,-151.0,0.00019315,2]
[350161383,1737663038453,-195.053583,0.00019315,2]
[350161385,1737663038463,-195.053583,0.00019315,2]
[350161387,1737663038473,-151.0,0.00019315,2]
[350161388,1737663038483,-591.75,0.00019315,3]
[350161390,1737663038492,-500.0,0.00019315,3]
[350161392,1737663038502,-380.67,0.00019315,3]
[350161394,1737663038512,-151.91999,0.00019315,2]
[350161396,1737663038521,-500.0,0.00019315,3]
[350161398,1737663038531,-151.0,0.00019315,2]
[350161400,1737663038540,-628.23,0.00019315,3]
[350161402,1737663038550,-500.0,0.00019315,3]
[350161404,1737663038563,-500.0,0.00019315,3]
[350161406,1737663038573,-500.0,0.00019315,3]
[350161408,1737663038583,-151.0,0.00019315,2]
[350161410,1737663038592,-500.0,0.00019315,2]
[350161412,1737663038602,-500.0,0.00019315,3]
[350161414,1737663038611,-151.0,0.00019315,2]
[350161416,1737663038620,-500.0,0.00019315,3]
[350161418,1737663038629,-500.0,0.00019315,3]
[350161420,1737663038638,-592.54,0.00019315,3]
[350161422,1737663038648,-500.0,0.00019315,3]
[350161424,1737663038657,-151.0,0.00019315,2]
[350161426,1737663038666,-152.194572,0.00019315,2]
[350161428,1737663038675,-154.213577,0.00019315,2]
[350161430,1737663038685,-500.0,0.00019315,3]
[350161432,1737663038694,-253.846855,0.00019315,2]
[350161434,1737663038703,-500.0,0.00019315,3]
[350161436,1737663038712,-151.0,0.00019315,2]
[350161438,1737663038722,-151.0,0.00019315,2]
[350161440,1737663038731,-500.0,0.00019315,3]
[350161442,1737663038740,-151.0,0.00019315,2]
[350161444,1737663038749,-500.0,0.00019315,3]
[350161446,1737663038758,-500.0,0.00019315,3]
[350161448,1737663038768,-500.0,0.00019315,2]
[350161450,1737663038777,-500.0,0.00019315,3]
[350161452,1737663038787,-151.0,0.00019315,2]
[350161454,1737663038796,-151.0,0.00019315,2]
[350161457,1737663038806,-44.09004501,0.00019315,3]
[350161471,1737663038945,-455.90995499,0.00019315,3]
[350161473,1737663038954,-414.4094671,0.00019315,3]
[350161492,1737663039120,-68.9405329,0.00019315,3]
[350161494,1737663039130,-500.0,0.00019315,3]
[350161496,1737663039139,-817.01,0.00019315,3]
[350161498,1737663039149,-151.0,0.00019315,2]
[350161500,1737663039159,-151.0,0.00019315,2]
[350161502,1737663039168,-151.0,0.00019315,2]
[350161504,1737663039177,-151.0,0.00019315,2]
[350161506,1737663039186,-151.321651,0.00019315,2]
[350161508,1737663039195,-500.0,0.00019315,3]
[350161510,1737663039204,-500.0,0.00019315,3]
[350161512,1737663039214,-878.33,0.00019315,3]
[350161514,1737663039223,-500.0,0.00019315,3]
[350161516,1737663039232,-500.0,0.00019315,3]
[350161518,1737663039241,-151.0,0.00019315,2]
[350161520,1737663039251,-151.0,0.00019315,2]
[350161522,1737663039260,-500.0,0.00019315,3]
[350161524,1737663039270,-151.0,0.00019315,2]
[350161526,1737663039279,-500.0,0.00019315,3]
[350161528,1737663039289,-151.0,0.00019315,2]
[350161530,1737663039298,-151.0,0.00019315,2]
[350161532,1737663039308,-3102.93422075,0.00019315,3]
[350161534,1737663039322,-4943.25577925,0.00019315,3]
[350161536,1737663039332,-3105.27,0.00019315,3]
[350161538,1737663039342,-500.0,0.00019315,3]
[350161541,1737663039355,-500.0,0.00019315,3]
[350161543,1737663039369,-3913.85,0.00019315,3]
[350161546,1737663039383,-500.0,0.00019315,3]
[350161548,1737663039397,-151.0,0.00019315,2]
[350161550,1737663039407,-500.0,0.00019315,3]
[350161553,1737663039421,-500.0,0.00019315,3]
[350161555,1737663039433,-500.0,0.00019315,3]
[350161557,1737663039445,-151.0,0.00019315,2]
[350161560,1737663039462,-500.0,0.00019315,3]
[350161562,1737663039475,-137.59914475,0.00019315,3]
[350161565,1737663039491,-362.40085525,0.00019315,3]
[350161567,1737663039504,-32.59914475,0.00019315,3]
[350161570,1737663039522,-1679.36085525,0.00019315,3]
[350161572,1737663039536,-500.0,0.00019315,3]
[350161575,1737663039548,-153.852683,0.00019315,2]
[350161577,1737663039560,-500.0,0.00019315,3]
[350161579,1737663039573,-1208.85,0.00019315,3]
[350161582,1737663039587,-500.0,0.00019315,3]
[350161584,1737663039600,-500.0,0.00019315,3]
[350161586,1737663039614,-688.62,0.00019315,3]
[350161588,1737663039625,-253.081742,0.00019315,2]
[350161590,1737663039635,-873.61,0.00019315,3]
[350161592,1737663039647,-500.0,0.00019315,3]
[350161595,1737663039659,-253.081742,0.00019315,2]
[350161597,1737663039671,-500.0,0.00019315,3]
[350161599,1737663039684,-1318.32,0.00019315,3]
[350161602,1737663039697,-151.0,0.00019315,2]
[350161604,1737663039709,-151.0,0.00019315,2]
[350161606,1737663039722,-534.45,0.00019315,3]
[350161609,1737663039734,-151.0,0.00019315,2]
[350161611,1737663039746,-500.0,0.00019315,3]
[350161614,1737663039759,-500.0,0.00019315,3]
[350161616,1737663039770,-210.94135593,0.00019315,3]
[350161619,1737663039781,-543.06,0.00019315,3]
[350161621,1737663039792,-500.0,0.00019315,3]
[350161623,1737663039803,-500.0,0.00019315,3]
[350161625,1737663039819,-500.0,0.00019315,3]
[350161628,1737663039831,-500.0,0.00019315,3]
[350161630,1737663039843,-151.0,0.00019315,2]
[350161632,1737663039853,-6658.01,0.00019315,3]
[350161634,1737663039864,-847.08,0.00019315,3]
[350161636,1737663039875,-500.0,0.00019315,3]
[350161639,1737663039887,-151.0,0.00019315,2]
[350161641,1737663039899,-500.0,0.00019315,3]
[350161644,1737663039910,-1306.42,0.00019315,3]
[350161647,1737663039921,-500.0,0.00019315,3]
[350161650,1737663039932,-500.0,0.00019315,3]
[350161653,1737663039943,-500.0,0.00019315,3]
[350161657,1737663039955,-767.93,0.00019315,3]
[350161660,1737663039966,-1447.81,0.00019315,3]
[350161662,1737663039977,-500.0,0.00019315,3]
[350161664,1737663039989,-3555.19,0.00019315,3]
[350161667,1737663039999,-1121.38,0.00019315,3]
[350161670,1737663040011,-216.01665,0.00019315,2]
[350161672,1737663040023,-216.01665,0.00019315,2]
[350161674,1737663040034,-28370.44043434,0.00019352,2]
[350161676,1737663040046,-11750.54030257,0.00019355,2]
[350161679,1737663040057,-504.4483581,0.00019452,3]
[350161681,1737663040068,-151.0,0.00019452,2]
[350161683,1737663040079,-151.0,0.00019452,2]
[350161685,1737663040091,-151.0,0.00019452,2]
[350161687,1737663040102,-151.901306,0.00019452,2]
[350161690,1737663040113,-195.053583,0.00019452,2]
[350161691,1737663040123,-195.053583,0.00019452,2]
[350161693,1737663040134,-500.0,0.00019452,3]
[350161695,1737663040145,-500.0,0.00019452,3]
[350161697,1737663040155,-151.0,0.00019452,2]
[350161699,1737663040166,-500.0,0.00019452,3]
[350161701,1737663040177,-500.0,0.00019452,3]
[350161704,1737663040188,-334.48,0.00019452,3]
[350161706,1737663040199,-151.0,0.00019452,2]
[350161708,1737663040210,-500.0,0.00019452,3]
[350161710,1737663040221,-151.0,0.00019452,2]
[350161712,1737663040231,-166.31,0.00019452,3]
[350161714,1737663040242,-500.0,0.00019452,3]
[350161716,1737663040253,-500.0,0.00019452,3]
[350161719,1737663040264,-151.0,0.00019452,2]
[350161721,1737663040274,-500.0,0.00019452,3]
[350161723,1737663040285,-500.0,0.00019452,3]
[350161725,1737663040296,-151.0,0.00019452,2]
[350161727,1737663040307,-151.0,0.00019452,2]
[350161730,1737663040319,-647.33451417,0.00019452,3]
[350161732,1737663040331,-500.0,0.00019452,3]
[350161734,1737663040341,-500.0,0.00019452,2]
[350161736,1737663040351,-500.0,0.00019452,3]
[350161738,1737663040360,-151.0,0.00019452,2]
[350161740,1737663040369,-500.0,0.00019452,3]
[350161742,1737663040379,-500.0,0.00019452,3]
[350161744,1737663040388,-817.01,0.00019452,3]
[350161746,1737663040397,-151.0,0.00019452,2]
[350161748,1737663040406,-151.0,0.00019452,2]
[350161750,1737663040416,-151.0,0.00019452,2]
[350161752,1737663040425,-151.0,0.00019452,2]
[350161754,1737663040434,-500.0,0.00019452,3]
[350161756,1737663040443,-500.0,0.00019452,3]
[350161771,1737663040582,-878.33,0.00019452,3]
[350161774,1737663040594,-500.0,0.00019452,3]
[350161775,1737663040603,-500.0,0.00019452,3]
[350161777,1737663040613,-174.153114,0.00019452,2]
[350161779,1737663040622,-500.0,0.00019452,3]
[350161781,1737663040631,-151.0,0.00019452,2]
[350161783,1737663040641,-500.0,0.00019452,3]
[350161785,1737663040650,-151.0,0.00019452,2]
[350161786,1737663040659,-151.0,0.00019452,2]
[350161787,1737663040668,-8046.19,0.00019452,3]
[350161788,1737663040677,-3105.27,0.00019452,3]
[350161789,1737663040687,-233.16,0.00019452,3]
[350161790,1737663040696,-500.0,0.00019452,3]
[350161791,1737663040705,-3913.85,0.00019452,3]
[350161793,1737663040714,-500.0,0.00019452,3]
[350161795,1737663040724,-151.0,0.00019452,2]
[350161797,1737663040733,-182.11018988,0.00019452,3]
[350161799,1737663040742,-500.0,0.00019452,3]
[350161801,1737663040751,-151.0,0.00019452,2]
[350161803,1737663040760,-500.0,0.00019452,3]
[350161805,1737663040769,-500.0,0.00019452,3]
[350161807,1737663040780,-1711.96,0.00019452,3]
[350161809,1737663040790,-500.0,0.00019452,3]
[350161811,1737663040800,-500.0,0.00019452,3]
[350161813,1737663040809,-1208.85,0.00019452,3]
[350161814,1737663040820,-500.0,0.00019452,3]
[350161816,1737663040830,-688.62,0.00019452,3]
[350161819,1737663040839,-253.081742,0.00019452,2]
[350161820,1737663040848,-873.61,0.00019452,3]
[350161822,1737663040857,-500.0,0.00019452,3]
[350161825,1737663040866,-253.081742,0.00019452,2]
[350161827,1737663040876,-500.0,0.00019452,3]
[350161829,1737663040885,-1318.32,0.00019452,3]
[350161831,1737663040894,-151.0,0.00019452,2]
[350161833,1737663040904,-151.0,0.00019452,2]
[350161835,1737663040914,-534.45,0.00019452,3]
[350161837,1737663040923,-151.0,0.00019452,2]
[350161839,1737663040932,-500.0,0.00019452,3]
[350161841,1737663040942,-500.0,0.00019452,3]
[350161843,1737663040951,-543.06,0.00019452,3]
[350161845,1737663040959,-310.1,0.00019452,3]
[350161847,1737663040969,-500.0,0.00019452,3]
[350161849,1737663040979,-500.0,0.00019452,3]
[350161851,1737663040988,-500.0,0.00019452,3]
[350161853,1737663040998,-6658.01,0.00019452,3]
[350161855,1737663041007,-847.08,0.00019452,3]
[350161857,1737663041016,-500.0,0.00019452,3]
[350161859,1737663041026,-151.0,0.00019452,2]
[350161861,1737663041035,-500.0,0.00019452,3]
[350161863,1737663041044,-1306.42,0.00019452,3]
[350161865,1737663041054,-500.0,0.00019452,3]
[350161867,1737663041066,-500.0,0.00019452,3]
[350161869,1737663041075,-500.0,0.00019452,3]
[350161871,1737663041084,-767.93,0.00019452,3]
[350161873,1737663041093,-1447.81,0.00019452,3]
[350161875,1737663041102,-500.0,0.00019452,3]
[350161877,1737663041111,-3555.19,0.00019452,3]
[350161879,1737663041121,-1121.38,0.00019452,3]
[350161881,1737663041131,-216.01665,0.00019452,2]
[350161883,1737663041141,-216.01665,0.00019452,2]
[350161885,1737663041150,-216.01665,0.00019452,2]
[350161887,1737663041160,-216.01665,0.00019452,2]
[350161889,1737663041169,-151.592033,0.00019489,2]
[350161891,1737663041179,-292.924331,0.00019489,2]
[350161893,1737663041188,-195.053583,0.00019489,2]
[350161895,1737663041198,-195.053583,0.00019489,2]
[350161897,1737663041207,-151.0,0.00019489,2]
[350161899,1737663041217,-151.0,0.00019489,2]
[350161901,1737663041226,-151.0,0.00019489,2]
[350161903,1737663041235,-151.0,0.00019489,2]
[350161905,1737663041245,-151.0,0.00019489,2]
[350161907,1737663041254,-151.0,0.00019489,2]
[350161909,1737663041264,-152.738497,0.00019489,2]
[350161911,1737663041273,-230.748972,0.00019489,2]
[350161913,1737663041282,-151.0,0.00019489,2]
[350161915,1737663041292,-151.0,0.00019489,2]
[350161917,1737663041301,-151.0,0.00019489,2]
[350161919,1737663041310,-151.0,0.00019489,2]
[350161921,1737663041323,-297.050412,0.00019489,2]
[350161923,1737663041332,-253.081742,0.00019489,2]
[350161925,1737663041341,-253.081742,0.00019489,2]
[350161927,1737663041350,-151.0,0.00019489,2]
[350161929,1737663041359,-151.0,0.00019489,2]
[350161931,1737663041368,-151.0,0.00019489,2]
[350161933,1737663041377,-151.0,0.00019489,2]
[350161935,1737663041386,-151.0,0.000195,2]
[350161937,1737663041395,-190.05545624,0.00019588,2]
[350161939,1737663041405,-195.053583,0.00019589,2]
[350161941,1737663041414,-195.053583,0.00019589,2]
[350161943,1737663041423,-500.0,0.00019589,3]
[350161945,1737663041432,-500.0,0.00019589,3]
[350161948,1737663041442,-500.0,0.00019589,3]
[350161950,1737663041454,-500.0,0.00019589,3]
[350161952,1737663041464,-151.0,0.00019589,2]
[350161954,1737663041473,-220.76,0.00019589,3]
[350161956,1737663041482,-151.0,0.00019589,2]
[350161958,1737663041491,-183.38,0.00019589,3]
[350161960,1737663041501,-500.0,0.00019589,3]
[350161962,1737663041510,-500.0,0.00019589,3]
[350161964,1737663041520,-500.0,0.00019589,3]
[350161966,1737663041529,-151.0,0.00019589,2]
[350161968,1737663041538,-151.0,0.00019589,2]
[350161970,1737663041548,-399.75,0.00019589,3]
[350161972,1737663041557,-500.0,0.00019589,2]
[350161974,1737663041567,-465.98,0.00019589,3]
[350161976,1737663041576,-151.0,0.00019589,2]
[350161978,1737663041585,-500.0,0.00019589,3]
[350161980,1737663041595,-500.0,0.00019589,3]
[350161982,1737663041604,-817.01,0.00019589,3]
[350161984,1737663041613,-151.0,0.00019589,2]
[350161986,1737663041624,-151.0,0.00019589,2]
[350161988,1737663041633,-500.0,0.00019589,3]
[350161990,1737663041642,-500.0,0.00019589,3]
[350161992,1737663041651,-500.0,0.00019589,3]
[350161994,1737663041660,-878.33,0.00019589,3]
[350161996,1737663041669,-500.0,0.00019589,3]
[350161998,1737663041678,-500.0,0.00019589,3]
[350162000,1737663041688,-500.0,0.00019589,3]
[350162002,1737663041697,-151.0,0.00019589,2]
[350162004,1737663041706,-151.0,0.00019589,2]
[350162006,1737663041715,-8046.19,0.00019589,3]
[350162008,1737663041724,-3105.27,0.00019589,3]
[350162010,1737663041733,-3913.85,0.00019589,3]
[350162012,1737663041742,-500.0,0.00019589,3]
[350162015,1737663041752,-500.0,0.00019589,3]
[350162017,1737663041761,-151.0,0.00019589,2]
[350162019,1737663041772,-500.0,0.00019589,3]
[350162021,1737663041782,-500.0,0.00019589,3]
[350162023,1737663041791,-500.0,0.00019589,3]
[350162024,1737663041799,-1711.96,0.00019589,3]
[350162027,1737663041809,-322.3,0.00019589,3]
[350162028,1737663041821,-274.4,0.00019589,3]
[350162030,1737663041830,-1208.85,0.00019589,3]
[350162033,1737663041841,-248.88,0.00019589,3]